bitfinex-derivatives/quotes_BTCF0:USTF0_20250620
["timestamp","ask_amount","ask_price","bid_price","bid_amount"]
[1750412242737,0.86009174,105960.0,105950.0,0.1927353]
[1750412243143,0.86009174,105960.0,105950.0,0.004]
[1750412243443,0.95430744,105960.0,105950.0,0.004]
[1750412244046,0.7093332,105960.0,105950.0,0.004]
[1750412244344,0.95430744,105960.0,105950.0,0.004]
[1750412246445,0.95430744,105960.0,105950.0,0.00097878]
[1750412248247,0.9542788,105960.0,105950.0,0.00097878]
[1750412252350,0.9542788,105960.0,105950.0,0.03357878]
[1750412253050,0.70930456,105960.0,105950.0,0.03357878]
[1750412253249,0.9542788,105960.0,105950.0,0.03357878]
[1750412254048,0.86009174,105960.0,105950.0,0.03357878]
[1750412254246,0.95432145,105960.0,105950.0,0.03357878]
[1750412254445,0.86009174,105960.0,105950.0,0.03357878]
[1750412254845,0.86009174,105960.0,105950.0,0.22231408]
[1750412255046,0.86009174,105960.0,105950.0,0.25541408]
[1750412256254,0.86009174,105960.0,105950.0,0.06667878]
[1750412256552,0.86009174,105960.0,105950.0,0.05747008]
[1750412256753,0.99198442,105960.0,105950.0,0.05747008]
[1750412261554,0.86009174,105960.0,105950.0,0.05747008]
[1750412262858,1.10542156,105960.0,105950.0,0.30262211]
[1750412263158,1.2374838,105960.0,105950.0,0.30262211]
[1750412265861,1.2374838,105960.0,105950.0,0.05747008]
[1750412266062,1.2374838,105960.0,105940.0,1.05843633]
[1750412266063,0.1887352,105950.0,105940.0,1.05843633]
[1750412266362,1.02366861,105950.0,105940.0,1.12313633]
[1750412266562,1.02366861,105950.0,105940.0,1.11392758]
[1750412266963,1.02366861,105950.0,105940.0,1.07594943]
[1750412267164,1.02366861,105950.0,105940.0,0.64206]
[1750412267368,1.02366861,105950.0,105940.0,0.0647]
[1750412267666,0.7163752,105950.0,105940.0,0.0677]
[1750412267875,0.96152723,105950.0,105940.0,0.31285203]
[1750412268067,1.09358947,105950.0,105940.0,0.50160513]
[1750412268571,1.09358947,105950.0,105940.0,0.31285203]
[1750412268968,1.09358947,105950.0,105940.0,0.31585203]
[1750412270873,1.09358947,105950.0,105940.0,0.50460503]
[1750412271074,1.06138947,105950.0,105940.0,0.50460503]
[1750412273573,1.06138947,105950.0,105940.0,0.31585203]
[1750412274080,1.06138947,105950.0,105940.0,0.50460513]
[1750412276583,1.06138947,105950.0,105940.0,0.49539578]
[1750412277881,0.92932723,105950.0,105940.0,0.49539578]
[1750412278183,1.06138947,105950.0,105940.0,0.49539578]
[1750412279483,1.06138947,105950.0,105930.0,0.7188969]
[1750412279484,0.1887531,105940.0,105930.0,0.0332]
[1750412279682,0.1887709,105930.0,105920.0,0.8724763]
[1750412279981,0.44357517,105930.0,105920.0,0.6431712]
[1750412280186,1.03316757,105930.0,105920.0,0.88765203]
[1750412280389,1.03316757,105930.0,105920.0,1.07644073]
[1750412280578,1.03316757,105930.0,105920.0,0.49924073]
[1750412280778,1.03316757,105930.0,105920.0,1.07644073]
[1750412281682,1.03516757,105930.0,105920.0,1.07644073]
[1750412282187,1.04016757,105930.0,105920.0,1.07744073]
[1750412282485,1.04016757,105930.0,105920.0,0.2550887]
[1750412282685,1.04016757,105930.0,105920.0,0.50024073]
[1750412282986,0.97661517,105930.0,105920.0,0.50024073]
[1750412283690,0.97661517,105930.0,105920.0,0.31145203]
[1750412284490,1.0709104,105930.0,105920.0,0.31145203]
[1750412285889,1.0709104,105930.0,105920.0,0.50024073]
[1750412286582,1.0709104,105930.0,105920.0,0.49103003]
[1750412287995,0.7101104,105930.0,105920.0,0.49103003]
[1750412289390,1.0709104,105930.0,105920.0,0.49103003]
[1750412295291,1.0709104,105930.0,105920.0,0.245878]
[1750412295494,1.0709104,105930.0,105920.0,0.49103003]
[1750412296487,1.0709104,105930.0,105920.0,0.4818195]
[1750412302595,0.82575837,105930.0,105920.0,0.4818195]
[1750412302798,0.43419837,105930.0,105920.0,0.72697153]
[1750412303202,0.43459837,105930.0,105920.0,0.72697153]
[1750412306605,0.43459837,105930.0,105920.0,0.71776109]
[1750412307103,0.43459837,105930.0,105920.0,0.22745703]
[1750412307402,1.0727504,105930.0,105920.0,1.04948906]
[1750412307802,0.97845517,105930.0,105920.0,0.47260906]
[1750412308002,0.97845517,105930.0,105920.0,1.04502073]
[1750412308201,1.11051741,105930.0,105920.0,1.04502073]
[1750412309395,0.97603741,105930.0,105920.0,1.04502073]
[1750412309592,1.11027741,105930.0,105920.0,1.04502073]
[1750412311905,1.11027741,105930.0,105920.0,0.7998687]
[1750412312106,1.14057741,105930.0,105920.0,1.04498073]
[1750412312906,1.00851517,105930.0,105920.0,1.04498073]
[1750412313107,1.14075708,105930.0,105920.0,1.04498073]
[1750412315311,0.89560505,105930.0,105920.0,1.04498073]
[1750412315511,1.14075708,105930.0,105920.0,1.04498073]
[1750412316008,1.14075708,105930.0,105920.0,0.46814073]
[1750412316197,1.14075708,105930.0,105920.0,1.04494073]
[1750412316604,1.14075708,105930.0,105920.0,1.0357301]
[1750412321415,1.14075708,105930.0,105920.0,1.28088213]
[1750412321615,1.11045708,105930.0,105920.0,1.28088213]
[1750412321910,0.47230505,105930.0,105920.0,1.28088213]
[1750412322101,0.47230505,105930.0,105920.0,1.31208213]
[1750412322712,0.47190505,105930.0,105920.0,1.31208213]
[1750412323009,0.33966314,105930.0,105920.0,1.31208213]
[1750412324315,0.34006314,105930.0,105920.0,1.31208213]
[1750412325115,0.34006314,105930.0,105920.0,1.65208213]
[1750412325318,0.34006314,105930.0,105920.0,1.31208213]
[1750412328612,0.34006314,105930.0,105920.0,0.82177807]
[1750412328820,0.34006314,105930.0,105920.0,1.31208213]
[1750412329120,0.58521517,105930.0,105920.0,1.31208213]
[1750412329720,0.58521517,105930.0,105920.0,0.82177807]
[1750412329920,0.58521517,105930.0,105920.0,1.31208213]
[1750412330721,0.61641517,105930.0,105920.0,1.31208213]
[1750412332623,0.7108662,105930.0,105920.0,1.30287176]
[1750412334229,0.7108662,105930.0,105920.0,1.61287176]
[1750412334427,0.43451417,105930.0,105920.0,1.30287176]
[1750412336431,0.43451417,105930.0,105920.0,1.67287176]
[1750412336631,0.43451417,105930.0,105920.0,1.30287176]
[1750412337331,0.10185103,105930.0,105920.0,1.98367176]
[1750412337531,0.29022183,105930.0,105920.0,1.98367176]
[1750412338030,0.29062183,105930.0,105920.0,1.66367176]
[1750412339026,0.29062183,105930.0,105920.0,2.03367176]
[1750412339628,0.10145103,105930.0,105920.0,2.03367176]
[1750412339829,0.08291504,105930.0,105920.0,2.03367176]
[1750412340028,0.08251504,105930.0,105920.0,2.03367176]
[1750412340832,0.08291504,105930.0,105920.0,2.03367176]
[1750412341734,0.08251504,105930.0,105920.0,2.03367176]
[1750412341928,0.08291504,105930.0,105920.0,2.03367176]
[1750412342936,0.08291504,105930.0,105920.0,2.32837176]
[1750412344435,0.0074,105930.0,105920.0,2.32837176]
[1750412349237,0.1961709,105930.0,105920.0,2.32837176]
[1750412358243,0.27168594,105930.0,105920.0,1.75157176]
[1750412358441,0.27168594,105930.0,105920.0,2.32777176]
[1750412358739,0.51683797,105930.0,105920.0,1.91175276]
[1750412359041,0.33518594,105930.0,105920.0,1.55095276]
[1750412359238,0.33518594,105930.0,105920.0,1.33559276]
[1750412359436,0.33518594,105930.0,105920.0,1.91175276]
[1750412360339,0.2596709,105930.0,105920.0,1.91175276]
[1750412360639,0.2596709,105930.0,105920.0,1.61705276]
[1750412360842,0.2596709,105930.0,105920.0,1.61701276]
[1750412362642,0.35412193,105930.0,105920.0,1.61701276]
[1750412363135,0.35412193,105930.0,105920.0,1.25621276]
[1750412363344,0.35412193,105930.0,105920.0,1.61701276]
[1750412363743,0.35412193,105930.0,105920.0,1.60780293]
[1750412364242,0.2596709,105930.0,105920.0,1.60780293]
[1750412364744,0.2596709,105930.0,105920.0,1.24700293]
[1750412365648,0.2596709,105930.0,105920.0,0.67088293]
[1750412365843,0.2596709,105930.0,105920.0,1.24700293]
[1750412368046,0.2596709,105930.0,105920.0,1.24696293]
[1750412368244,0.33515136,105930.0,105920.0,1.24696293]
[1750412369643,0.33515136,105930.0,105920.0,1.60776293]
[1750412370752,0.30485136,105930.0,105920.0,1.60772293]
[1750412370953,0.30485136,105930.0,105920.0,1.67312293]
[1750412372141,0.30485136,105930.0,105920.0,2.03312293]
[1750412372954,0.30485136,105930.0,105920.0,1.67312293]
[1750412375953,0.30485136,105930.0,105920.0,1.67308293]
[1750412379257,0.2293709,105930.0,105920.0,1.18273887]
[1750412379455,0.2599709,105930.0,105920.0,1.27974293]
[1750412380455,0.58061098,105930.0,105920.0,0.70378293]
[1750412380659,0.58061098,105930.0,105920.0,1.24684293]
[1750412380949,0.33545895,105930.0,105920.0,1.24684293]
[1750412382257,0.33545895,105930.0,105920.0,1.28004293]
[1750412383261,0.2599709,105930.0,105920.0,0.70408293]
[1750412383556,0.2599709,105930.0,105920.0,1.28000293]
[1750412384356,0.2599709,105930.0,105920.0,1.24680293]
[1750412384557,0.2599709,105930.0,105920.0,1.0016509]
[1750412384756,0.2599709,105930.0,105920.0,1.24680293]
[1750412384957,0.50512293,105930.0,105920.0,1.24680293]
[1750412385857,0.50512293,105930.0,105920.0,0.67088293]
[1750412386056,0.50512293,105930.0,105920.0,0.4257309]
[1750412386358,0.50512293,105930.0,105920.0,1.0016509]
[1750412386656,0.59957396,105930.0,105920.0,0.99244079]
[1750412387055,0.35442193,105930.0,105920.0,0.99244079]
[1750412387361,0.50512293,105930.0,105920.0,0.99244079]
[1750412388261,0.59957396,105930.0,105920.0,0.99244079]
[1750412390164,0.50512293,105930.0,105920.0,1.02474079]
[1750412395563,0.86592293,105930.0,105920.0,1.02466079]
[1750412395863,0.35442193,105930.0,105920.0,1.02466079]
[1750412396054,0.59957396,105930.0,105920.0,1.02466079]
[1750412396362,0.50512293,105930.0,105920.0,1.02466079]
[1750412396560,0.86592293,105930.0,105920.0,1.02466079]
[1750412396761,0.96037396,105930.0,105920.0,1.02466079]
[1750412399666,0.96037396,105930.0,105920.0,1.01545044]
[1750412404672,0.71522193,105930.0,105920.0,1.01545044]
[1750412404971,0.96037396,105930.0,105920.0,1.01545044]
[1750412406666,0.71522193,105930.0,105920.0,1.01545044]
[1750412406862,0.96037396,105930.0,105920.0,1.01545044]
[1750412407073,0.96037396,105930.0,105920.0,1.26060247]
[1750412407774,0.96037396,105930.0,105920.0,1.01545044]
[1750412408172,1.09261587,105930.0,105920.0,0.19445841]
[1750412408387,0.99816484,105930.0,105920.0,1.01537044]
[1750412408579,0.99816484,105930.0,105920.0,0.43961044]
[1750412408773,0.99816484,105930.0,105920.0,1.01533044]
[1750412409677,0.99816484,105930.0,105920.0,1.00611998]
[1750412412475,1.13184484,105930.0,105920.0,1.00611998]
[1750412414785,1.13184484,105930.0,105920.0,1.03891998]
[1750412415183,0.52589281,105930.0,105920.0,0.70835201]
[1750412415371,0.74044484,105930.0,105920.0,1.28403201]
[1750412415573,0.3294509,105930.0,105920.0,1.64483201]
[1750412415873,0.3298509,105930.0,105920.0,1.64483201]
[1750412416578,0.3298509,105930.0,105920.0,1.28403201]
[1750412417480,0.1961709,105930.0,105920.0,1.28403201]
[1750412418178,0.2906124,105930.0,105920.0,1.28403201]
[1750412418983,0.53576443,105930.0,105920.0,1.28403201]
[1750412419873,0.53576443,105930.0,105920.0,1.27482186]
[1750412422678,0.2906124,105930.0,105920.0,1.27482186]
[1750412422878,0.53576443,105930.0,105920.0,1.27482186]
[1750412423081,0.2906124,105930.0,105920.0,1.27482186]
[1750412427877,0.2906124,105930.0,105920.0,2.01562186]
[1750412428079,0.2902124,105930.0,105920.0,1.63562186]
[1750412428279,0.2906124,105930.0,105920.0,1.63562186]
[1750412429481,0.2906124,105930.0,105920.0,1.95562186]
[1750412429684,0.2906124,105930.0,105920.0,1.63562186]
[1750412429987,0.2906124,105930.0,105920.0,1.62641182]
[1750412431582,0.2906124,105930.0,105920.0,1.92111182]
[1750412433895,0.1961709,105930.0,105920.0,1.92111182]
[1750412434282,0.29059534,105930.0,105920.0,1.92111182]
[1750412434883,0.29059534,105930.0,105920.0,2.28111182]
[1750412435392,0.29059534,105930.0,105920.0,1.92111182]
[1750412439592,0.53574737,105930.0,105920.0,1.92111182]
[1750412440198,0.53574737,105930.0,105920.0,1.91190178]
[1750412440598,0.29059534,105930.0,105920.0,1.91190178]
[1750412443308,0.29059534,105930.0,105920.0,1.42159772]
[1750412443510,0.1961709,105930.0,105920.0,1.91190178]
[1750412443709,0.27136322,105930.0,105920.0,1.91190178]
[1750412448206,0.2287709,105930.0,105920.0,1.91190178]
[1750412449208,0.47392293,105930.0,105920.0,1.91150178]
[1750412449409,0.47392293,105930.0,105920.0,1.61680178]
[1750412449603,0.56834737,105930.0,105920.0,1.61680178]
[1750412450310,0.56834737,105930.0,105920.0,1.60759175]
[1750412450510,0.56834737,105930.0,105920.0,1.03231175]
[1750412450714,0.47392293,105930.0,105920.0,1.24675175]
[1750412451008,0.50502293,105930.0,105920.0,1.24675175]
[1750412453611,0.50502293,105930.0,105920.0,1.00159972]
[1750412454107,0.50502293,105930.0,105920.0,0.96879972]
[1750412454512,0.50502293,105930.0,105920.0,0.96875972]
[1750412454914,0.2598709,105930.0,105920.0,0.96875972]
[1750412455114,0.50502293,105930.0,105920.0,0.96875972]
[1750412455917,0.50502293,105930.0,105920.0,0.72360769]
[1750412456214,0.50502293,105930.0,105920.0,0.96875972]
[1750412458214,0.59901279,105930.0,105920.0,1.21391175]
[1750412460213,0.59901279,105930.0,105920.0,1.20470152]
[1750412463518,0.59901279,105930.0,105920.0,0.95954949]
[1750412466619,0.59901279,105930.0,105920.0,1.20470152]
[1750412466919,0.59901279,105930.0,105920.0,0.95954949]
[1750412470018,0.59901279,105930.0,105920.0,1.20470152]
[1750412470219,0.59901279,105930.0,105920.0,1.19549127]
[1750412470617,0.59901279,105930.0,105920.0,0.70518721]
[1750412470817,0.59901279,105930.0,105920.0,1.19549127]
[1750412471017,0.59901279,105930.0,105920.0,0.95033924]
[1750412472726,0.59901279,105930.0,105920.0,0.37513924]
[1750412473025,0.59901279,105930.0,105920.0,0.95013924]
[1750412480223,0.59901279,105930.0,105920.0,0.94092897]
[1750412484533,0.35386076,105930.0,105920.0,0.94092897]
[1750412484733,0.59901279,105930.0,105920.0,0.97312897]
[1750412484928,0.10138986,105930.0,105920.0,1.908881]
[1750412485134,0.10098986,105930.0,105920.0,1.908881]
[1750412485331,0.0074,105930.0,105920.0,1.908881]
[1750412485526,0.08256499,105930.0,105920.0,1.908881]
[1750412486034,0.08256499,105930.0,105920.0,2.15403303]
[1750412486527,0.08216499,105930.0,105920.0,1.908881]
[1750412486933,0.08256499,105930.0,105920.0,2.15403303]
[1750412487334,0.08256499,105930.0,105920.0,1.908881]
[1750412488037,0.08216499,105930.0,105920.0,1.908881]
[1750412488242,0.08216499,105930.0,105920.0,2.203581]
[1750412488936,0.08256499,105930.0,105920.0,2.203581]
[1750412491433,0.08256499,105930.0,105920.0,2.564381]
[1750412493634,0.08256499,105930.0,105920.0,2.269681]
[1750412497636,0.1961709,105930.0,105920.0,2.269681]
[1750412498345,0.0074,105930.0,105920.0,2.269681]
[1750412499541,0.0074,105930.0,105920.0,2.564381]
[1750412500442,0.1961708,105930.0,105920.0,2.564381]
[1750412502643,0.0074,105930.0,105920.0,2.564381]
[1750412505246,0.1961708,105930.0,105920.0,2.564381]
[1750412506248,0.1961708,105930.0,105920.0,2.07407694]
[1750412506448,0.1961708,105930.0,105920.0,2.564381]
[1750412507451,0.0074,105930.0,105920.0,2.564381]
[1750412509348,0.1961708,105930.0,105920.0,2.564381]
[1750412513259,0.2294708,105930.0,105920.0,2.564381]
[1750412515860,0.2294708,105930.0,105920.0,1.842781]
[1750412516064,0.2294708,105930.0,105920.0,2.564381]
[1750412518564,0.2294708,105930.0,105920.0,1.43477694]
[1750412518757,0.2294708,105930.0,105920.0,2.00909694]
[1750412519061,0.2611708,105930.0,105920.0,2.499401]
[1750412520666,0.2611708,105930.0,105920.0,1.605081]
[1750412520861,0.50632283,105930.0,105920.0,0.883481]
[1750412521061,0.50632283,105930.0,105920.0,0.62832897]
[1750412521260,0.50632283,105930.0,105920.0,1.20260897]
[1750412521566,0.50632283,105930.0,105920.0,1.447761]
[1750412522065,0.2611708,105930.0,105920.0,1.447761]
[1750412523268,0.2611708,105930.0,105920.0,1.153061]
[1750412525668,0.2611708,105930.0,105920.0,1.513861]
[1750412526169,0.2607708,105930.0,105920.0,1.513861]
[1750412526362,0.2611708,105930.0,105920.0,1.513861]
[1750412527064,0.2611708,105930.0,105920.0,1.883861]
[1750412527266,0.2611708,105930.0,105920.0,1.513861]
[1750412527669,0.2611708,105930.0,105920.0,1.883861]
[1750412527873,0.0074,105930.0,105920.0,1.843861]
[1750412528167,0.007,105930.0,105920.0,1.875461]
[1750412528367,0.007,105930.0,105920.0,1.905861]
[1750412528368,0.0074,105930.0,105920.0,1.905861]
[1750412528771,0.007,105930.0,105920.0,1.905861]
[1750412529067,0.0074,105930.0,105920.0,1.905861]
[1750412529269,0.0074,105930.0,105920.0,2.200561]
[1750412530476,0.0074,105930.0,105920.0,2.44571303]
[1750412531364,0.0074,105930.0,105920.0,2.57863303]
[1750412534069,0.007,105930.0,105920.0,2.57863303]
[1750412534266,0.0074,105930.0,105920.0,2.57863303]
[1750412534979,0.0008,105940.0,105930.0,0.1887708]
[1750412535175,0.0322,105950.0,105940.0,0.188753]
[1750412535370,0.033,105950.0,105940.0,2.02641706]
[1750412535580,0.0008,105950.0,105940.0,2.27156909]
[1750412536078,0.0008,105950.0,105940.0,2.28087069]
[1750412536682,0.394481,105960.0,105950.0,0.1887352]
[1750412536877,0.3472972,105960.0,105950.0,1.10468723]
[1750412537074,0.3472972,105960.0,105950.0,1.34983926]
[1750412537271,0.3472972,105960.0,105950.0,1.38063926]
[1750412537477,0.3476972,105960.0,105950.0,1.38063926]
[1750412537671,0.3472972,105960.0,105950.0,1.13548723]
[1750412537876,0.3476972,105960.0,105950.0,0.82548723]
[1750412538385,0.2533315,105960.0,105950.0,1.41063926]
[1750412538578,0.0322,105960.0,105950.0,1.44293926]
[1750412538781,0.3140684,105970.0,105960.0,0.1887174]
[1750412538981,0.3441684,105970.0,105960.0,1.60314146]
[1750412539180,0.3433684,105970.0,105960.0,1.60314146]
[1750412539483,0.3441684,105970.0,105960.0,1.60314146]
[1750412540284,0.3441684,105970.0,105960.0,1.60414146]
[1750412540485,0.3461684,105970.0,105960.0,1.60414146]
[1750412540785,0.3461684,105970.0,105960.0,1.63704146]
[1750412541185,0.3159684,105970.0,105960.0,1.63704146]
[1750412541379,0.3159684,105970.0,105960.0,2.02864146]
[1750412541584,0.40931307,105970.0,105960.0,2.02864146]
[1750412541778,0.28531692,105970.0,105960.0,2.02864146]
[1750412542182,0.28451692,105970.0,105960.0,2.02864146]
[1750412542382,0.28491692,105970.0,105960.0,2.02864146]
[1750412542784,0.28491692,105970.0,105960.0,1.67864146]
[1750412542980,0.28491692,105970.0,105960.0,2.05864146]
[1750412543881,0.28491692,105970.0,105960.0,2.35334146]
[1750412544685,0.1911147,105970.0,105960.0,2.35334146]
[1750412545882,0.1911147,105970.0,105960.0,2.50351042]
[1750412546084,0.0024,105970.0,105960.0,2.50351042]
[1750412546385,0.1910996,105970.0,105960.0,2.50351042]
[1750412546585,0.21348936,105970.0,105960.0,2.50351042]
[1750412549188,0.02478976,105970.0,105960.0,2.50351042]
[1750412549492,0.21348936,105970.0,105960.0,2.50351042]
[1750412550486,0.21348936,105970.0,105960.0,2.01320636]
[1750412550791,0.21348936,105970.0,105960.0,2.50351042]
[1750412550991,0.21348936,105970.0,105960.0,2.37043042]
[1750412554501,0.21348936,105970.0,105960.0,2.34393551]
[1750412558893,0.02478976,105970.0,105960.0,2.34393551]
[1750412559094,0.02478976,105970.0,105960.0,2.34385551]
[1750412559598,0.09975835,105970.0,105960.0,2.34385551]
[1750412560398,0.02478976,105970.0,105960.0,2.34385551]
[1750412560603,0.09975835,105970.0,105960.0,2.34385551]
[1750412561605,0.09975835,105970.0,105960.0,2.58900754]
[1750412562708,0.08110792,105970.0,105960.0,2.57673408]
[1750412563099,0.08070792,105970.0,105960.0,2.57673408]
[1750412563304,0.08110792,105970.0,105960.0,2.57673408]
[1750412563702,0.08070792,105970.0,105960.0,2.57673408]
[1750412563904,0.08110792,105970.0,105960.0,2.57573408]
[1750412564101,0.08110792,105970.0,105960.0,2.57673408]
[1750412564605,0.02478976,105970.0,105960.0,2.57673408]
[1750412565004,0.02278976,105970.0,105960.0,2.57673408]
[1750412565207,0.02378976,105970.0,105960.0,2.57673408]
[1750412565501,0.05775853,105970.0,105960.0,2.57673408]
[1750412565705,0.07596859,105980.0,105970.0,0.1886995]
[1750412566002,0.09845268,105980.0,105970.0,1.73859888]
[1750412566206,0.09845268,105980.0,105970.0,1.87131888]
[1750412567000,0.10145268,105980.0,105970.0,1.87231888]
[1750412567403,0.10245268,105980.0,105970.0,1.87231888]
[1750412567914,0.10145268,105980.0,105970.0,1.87231888]
[1750412568112,0.10145268,105980.0,105970.0,1.87531888]
[1750412568412,0.02648409,105980.0,105970.0,1.87531888]
[1750412569011,0.02348409,105980.0,105970.0,1.87431888]
[1750412569210,0.02348409,105980.0,105970.0,1.87531888]
[1750412570013,0.02765816,105980.0,105970.0,1.87531888]
[1750412571013,0.02348409,105980.0,105970.0,1.87531888]
[1750412574022,0.21216589,105980.0,105970.0,1.70979888]
[1750412574212,0.35213448,105980.0,105970.0,1.08414685]
[1750412574412,0.35231191,105980.0,105970.0,1.29702685]
[1750412574612,0.71311367,105980.0,105970.0,1.29702685]
[1750412574912,0.73176811,105980.0,105970.0,1.29702685]
[1750412575418,0.63796589,105980.0,105970.0,1.29702685]
[1750412575806,0.63796589,105980.0,105970.0,1.2878211]
[1750412576410,0.63796589,105980.0,105970.0,0.9931211]
[1750412576820,0.63796589,105980.0,105970.0,0.99296764]
[1750412578419,0.73176811,105980.0,105970.0,0.99296764]
[1750412580322,0.73176811,105980.0,105970.0,1.33296764]
[1750412580521,0.73176811,105980.0,105970.0,0.99296764]
[1750412580718,0.73176811,105980.0,105970.0,1.35296764]
[1750412580921,0.73176811,105980.0,105970.0,0.99296764]
[1750412581122,0.63796589,105980.0,105970.0,1.37296764]
[1750412581321,0.63796589,105980.0,105970.0,0.99296764]
[1750412585926,0.63796589,105980.0,105970.0,0.98376188]
[1750412586623,0.27716589,105980.0,105970.0,1.71456188]
[1750412587223,0.27716589,105980.0,105970.0,1.34456188]
[1750412587732,0.37096811,105980.0,105970.0,1.37466188]
[1750412587934,0.11768631,105980.0,105970.0,1.74466188]
[1750412588228,0.11728631,105980.0,105970.0,1.69239057]
[1750412588437,0.11728631,105980.0,105970.0,1.98709057]
[1750412588438,0.02388409,105980.0,105970.0,1.98709057]
[1750412588734,0.09540102,105980.0,105970.0,1.98709057]
[1750412592639,0.0014,105980.0,105970.0,1.98709057]
[1750412594528,0.09543876,105980.0,105970.0,1.98709057]
[1750412594725,0.09503876,105980.0,105970.0,1.98709057]
[1750412594924,0.09543876,105980.0,105970.0,1.98709057]
[1750412595840,0.09543876,105980.0,105970.0,1.91097857]
[1750412596044,0.09543876,105980.0,105970.0,2.09967807]
[1750412597740,0.0014,105980.0,105970.0,2.09967807]
[1750412599039,0.0014,105980.0,105970.0,2.34454114]
[1750412600137,0.09548383,105980.0,105970.0,2.34454114]
[1750412601132,0.0014,105980.0,105970.0,2.34454114]
[1750412601938,0.1900817,105980.0,105970.0,2.34454114]
[1750412602234,0.1900817,105980.0,105970.0,2.47718114]
[1750412602438,0.0014,105980.0,105970.0,2.47718114]
[1750412605339,0.07671871,105980.0,105970.0,2.47718114]
[1750412606738,0.07771871,105980.0,105970.0,2.47418114]
[1750412608640,0.07731871,105980.0,105970.0,2.47418114]
[1750412608837,0.0024,105980.0,105970.0,2.47418114]
[1750412609242,0.07771376,105980.0,105970.0,2.47418114]
[1750412609448,0.0024,105980.0,105970.0,2.47418114]
[1750412609942,0.07771499,105980.0,105970.0,2.47418114]
[1750412610145,0.0024,105980.0,105970.0,2.47418114]
[1750412610746,0.07771346,105980.0,105970.0,2.47418114]
[1750412611845,0.07771346,105980.0,105970.0,1.9843195]
[1750412612039,0.07771346,105980.0,105970.0,2.47418114]
[1750412615049,0.0024,105980.0,105970.0,2.71911196]
[1750412615355,0.09488383,105990.0,105980.0,0.1886817]
[1750412615547,0.09488383,105990.0,105980.0,1.67796982]
[1750412615850,0.09488383,105990.0,105980.0,1.68731123]
[1750412616050,0.0008,105990.0,105980.0,1.68731123]
[1750412616553,0.0008,105990.0,105980.0,1.68831123]
[1750412617050,0.0008,105990.0,105980.0,1.68931123]
[1750412617952,0.0008,105990.0,105980.0,1.98401123]
[1750412618950,0.09488383,105990.0,105980.0,1.98401123]
[1750412619951,0.0008,105990.0,105980.0,1.98401123]
[1750412620149,0.09488383,105990.0,105980.0,1.98401123]
[1750412620552,0.12508383,106000.0,105990.0,0.1886639]
[1750412620745,0.12508383,106000.0,105990.0,1.98340554]
[1750412620945,0.12588383,106000.0,105990.0,1.98340554]
[1750412621241,0.31452993,106000.0,105990.0,1.64340554]
[1750412621444,0.15708383,106000.0,105990.0,1.64340554]
[1750412621643,0.15708383,106000.0,105990.0,1.97340554]
[1750412622254,0.15708383,106000.0,105990.0,1.64340554]
[1750412622451,0.15708383,106000.0,105990.0,2.00340554]
[1750412622652,0.12688383,106000.0,105990.0,2.00340554]
[1750412622852,0.12688383,106000.0,105990.0,2.02064667]
[1750412623554,0.15688383,106000.0,105990.0,2.02064667]
[1750412624756,0.34552993,106000.0,105990.0,2.02064667]
[1750412625553,0.34552993,106000.0,105990.0,2.01144312]
[1750412625859,0.34552993,106000.0,105990.0,1.99420199]
[1750412626059,0.34552993,106000.0,105990.0,1.96380199]
[1750412626764,0.349704,106000.0,105990.0,1.96380199]
[1750412627860,0.2514461,106000.0,105990.0,1.21066164]
[1750412628061,1.08283344,106000.0,105990.0,1.00723472]
[1750412628255,0.83790262,106000.0,105990.0,1.00723472]
[1750412628468,0.2514461,106000.0,105990.0,1.00723472]
[1750412629160,0.32670755,106000.0,105990.0,1.00723472]
[1750412630064,0.33088162,106000.0,105990.0,1.00723472]
[1750412630863,0.33008162,106000.0,105990.0,1.00747472]
[1750412632271,0.33048162,106000.0,105990.0,1.00747472]
[1750412632470,0.25522017,106000.0,105990.0,1.00747472]
[1750412635971,0.34929759,106000.0,105990.0,0.99827056]
[1750412639267,0.34929759,106000.0,105990.0,0.42439056]
[1750412639473,0.59422841,106000.0,105990.0,0.99803056]
[1750412639866,0.95502841,106000.0,105990.0,0.81857082]
[1750412640068,0.95502841,106000.0,105990.0,0.57364]
[1750412640364,0.86095099,106000.0,105990.0,0.81857082]
[1750412640975,0.1886639,105990.0,105980.0,0.53963082]
[1750412641268,0.95162761,105990.0,105980.0,1.30195252]
[1750412641573,0.70669679,105990.0,105980.0,0.67854334]
[1750412641768,0.70669679,105990.0,105980.0,1.25222334]
[1750412642370,0.70669679,105990.0,105980.0,1.25322334]
[1750412642771,0.70669679,105990.0,105980.0,1.25422334]
[1750412644769,0.70669679,105990.0,105980.0,0.68054334]
[1750412644974,0.70669679,105990.0,105980.0,1.25418334]
[1750412645874,0.70669679,105990.0,105980.0,1.24497818]
[1750412646078,0.71087086,105990.0,105980.0,1.24497818]
[1750412653277,0.71087086,105990.0,105980.0,1.27547818]
[1750412654479,0.70669679,105990.0,105980.0,1.27547818]
[1750412654970,0.34589679,105990.0,105980.0,1.30817818]
[1750412655379,0.35007086,105990.0,105980.0,1.30817818]
[1750412655786,0.31787086,105990.0,105980.0,1.30817818]
[1750412656378,0.31369679,105990.0,105980.0,1.30817818]
[1750412658686,0.31369679,105990.0,105980.0,1.29897322]
[1750412659285,0.31787086,105990.0,105980.0,1.29897322]
[1750412659886,0.28697086,105990.0,105980.0,1.29897322]
[1750412660784,0.28697086,105990.0,105980.0,1.65977322]
[1750412666482,0.28737086,105990.0,105980.0,1.65977322]
[1750412667386,0.19323797,105990.0,105980.0,1.65977322]
[1750412667887,0.28737086,105990.0,105980.0,1.65977322]
[1750412668689,0.28737086,105990.0,105980.0,1.65056861]
[1750412668990,0.19323797,105990.0,105980.0,1.65056861]
[1750412669386,0.32456439,105990.0,105980.0,1.65056861]
[1750412672682,0.19323797,105990.0,105980.0,1.65056861]
[1750412673592,0.19283797,105990.0,105980.0,2.01056861]
[1750412673792,0.19323797,105990.0,105980.0,2.01056861]
[1750412674092,0.19323797,105990.0,105980.0,1.65056861]
[1750412675688,0.19283797,105990.0,105980.0,1.16070697]
[1750412675881,0.19283797,105990.0,105980.0,1.96056861]
[1750412676394,0.19323797,105990.0,105980.0,1.96056861]
[1750412677093,0.19323797,105990.0,105980.0,2.25526861]
[1750412677693,0.09881179,105990.0,105980.0,2.50019943]
[1750412677883,0.00457407,105990.0,105980.0,2.63283943]
[1750412678088,0.09841998,105990.0,105980.0,2.63283943]
[1750412678890,0.09881998,105990.0,105980.0,2.62363611]
[1750412679086,0.17419058,105990.0,105980.0,2.62363611]
[1750412679286,0.07994467,105990.0,105980.0,2.62363611]
[1750412682998,0.07994467,105990.0,105980.0,2.32893611]
[1750412686599,0.07994467,105990.0,105980.0,2.34580851]
[1750412689000,0.00457407,105990.0,105980.0,2.64050851]
[1750412693414,0.00457407,105990.0,105980.0,2.63950851]
[1750412694095,0.00657407,105990.0,105980.0,2.63850851]
[1750412695508,0.08194467,105990.0,105980.0,2.06486851]
[1750412695708,0.08194467,105990.0,105980.0,2.63834851]